Workbook

Sheet Main
G1: Version 4
G2: =TODAY() -> 2024-02-02
F3: Customer Name:
F4: PO Number:
F5: AGI Westeel Sales Order Number:
B6: Location Usage | J6: Bin Series | K6: Standard Peak Load | L6: Higher Rated Peak Load
B7: Location Type | C7: * | D7: =INDEX(Tables!$F$8:$F$10,Tables!L19) ->  | F7: * - Mandatory Fields
K8: lbs (kN) | L8: lbs (kN)
B9: Bin Requirements | J9: Non-Structural Roof
B10: Bin Type | C10: * | D10: =INDEX(Tables!$F$13:$F$20,Tables!L20) ->  | J10: 15 | K10: 4000 (17.8) | L10: 8000 (35.6)
B11: Diameter [ft.] | C11: * | D11: =INDEX(Tables!$A$2:$A$18,Tables!L21) ->  | J11: 16
B12: Tier | C12: * | D12: =INDEX(Tables!$H$2:$H$16,Tables!L22) ->  | J12: 18
B13: Peak Load [lbs.] | C13: * | D13: =INDEX(Tables!$J$2:$J$5,Tables!L23) ->  | J13: 21
J14: 24
B15: Bin Location | J15: 27 | K15: 5000 (22.2) | L15: 10000 (44.5)
B16: Location Name | C16: * | J16: 30
B17: Wind Speed [mph] | C17: * | J17: 33
B18: Ground Snow Load [psf] | C18: * | J18: 36
J19: 39
B20: Cable Monitoring System | J20: 42
B21: Cable Type | C21: * | D21: =INDEX(Tables!$F$2:$F$5,Tables!L24) ->  | J21: 45
J22: 48
B23: Results | J23: 51 | K23: 8000 (35.6) | L23: 12000 (53.4)
B24: Roof Requirements | D24: Description | E24: Part Number | J24: 54
B25: Standard Roof | D25: =IF(D21=" ","-",IFERROR(INDEX(Tables!$V$1:$V$17,MATCH(nDia,Tables!$U$1:$U$17,0)),"-")) -> - | E25: =IF(D21=" ","-",IFERROR(INDEX(Tables!$W$1:$W$17,MATCH(nDia,Tables!$U$1:$U$17,0)),"-")) -> - | J25: Structural Roof
B26: Roof Upgrade Required | D26: =IFERROR(IF(Tables!N24=" ","-",INDEX(Tables!$V$18:$V$42,MATCH($E$26,Tables!$W$18:$W$42,0))),"-") -> - | E26: =IF(Tables!N24=" ","-",IF(OR(BT="Westeel EasyDry SGL Fan Inlet",BT="Westeel EasyDry DBL Fan Inlet"),IFERROR(INDEX(Tables!Y1:AC5,MATCH(nDia,Tables!Y1:Y16,0),MATCH(HLOOKUP(MIN(Calculations!$C$28:$F$29),Calculations!$C$26:$F$27,2,FALSE),Tables!L1:P1,0)),"-"),IFERROR(INDEX(Tables!L1:P16,MATCH(nDia,Tables!L1:L16,0),MATCH(HLOOKUP(MIN(Calculations!$C$28:$F$29),Calculations!$C$26:$F$27,2,FALSE),Tables!L1:P1,0)),"-"))) -> - | J26: 48 | K26: 20000 (89.0) | L26: 60000 (266.9)
B27: Required Monitoring Cable Hanger System | D27: =IF(RCBLTYPE="None","-",IF(OR(E25=212601,E26=212610,E26=212599,E26=212598),Calculations!E18,"-")) -> - | E27: =IFERROR(IF(OR(E25=212601,E26=212610,E26=212599,E26=212598),Calculations!D18,"-"),"-") -> - | J27: 51
J28: 54
B29: Remaining Peak Load | D29: =IFERROR(IF(Tables!N24=" ","-",ROUNDDOWN(RPL,0)&" lbs ("&ROUNDDOWN(RPL/224.80894387096,1)&" kN)"),"") -> - | J29: 60
B30: =IF(COUNTIF($D$26,"*Structural Roof")=1,"Structural roof replaces standard roof. You will need to purchase "&E26&" instead of the standard roof.","") -> 
B31: =IF(LT="Commercial", "Please contact AGI Westeel Customer Service about seismic considerations.", "") -> 
B32: =IF(D21=" ","",IFERROR(IF(WS>107,"Please contact AGI Westeel Customer Service for potential wind upgrades.",""),"")) -> 
B33: =IFERROR(IF(Tables!N24=" ","",IF(AND(RCBLTYPE="None", nDia<=21, MIN(Calculations!C28:F29)<>9999), "",IF(MIN(Calculations!C28:F29)=9999,"ROOF IS OVERLOADED. Neither the standard roof nor any standard roof upgrades will accommodate the loads. Please contact AGI Westeel Customer Service for potential further roof upgrades.",""))),"") -> 
B34: =IF(D21=" ","",IF(BT="Stiffened AGI Westeel Hopper","Currently AGI Westeel 15'-27' welded hopper bottoms are manufactured for unstiffened bins only. Please ensure the third-party hopper you are using will work with AGI Westeel Products.","")) -> 
B38: Important Notes - Standard AGI Westeel Bins are rated for 107 mph as per ASCE 7-16. - For Flat Bottom Bins: This tool assumes the AGI SureTrack Monitoring System for all bin sizes, and the cables end 2ft. up from the floor. - For Hopper Bottom Bins: This tool assumes the AGI SureTrack Monitoring System for all bin sizes, and the cables attach to the hopper cone. - For SSK Bins: This tool assumes the AGI SureTrack Monitoring System for all bin sizes, and the cables attach to the hopper cone. - If your Monitoring Cable System does not fall under these parameters please contact AGI Westeel Customer Service for a custom analysis. - Monitoring Cable Systems are not available for AGI Westeel EasyDry Bins. - If your bin is using an AGI SureTrack Monitoring System Package, the package will come with a standard AGI SureTrack hanger system. - If your Monitoring Cable Hanger System is different from the one this tool has recommended, please contact AGI Westeel Customer Service for further information. - For SSK Hoppers the angle of the hopper sheets are 45° for 15'-21' bins and 40° for 24'-27' bins. - For Welded Hoppers the angle of the hopper sheets are 35° for 15'-27' bins.

Sheet Quick Notes

Sheet Instructions & Training

Sheet Calculations (hidden)
A1: Radial Cable Loads | K1: Roof Snow Load (RSL)
A2: Central Cable Radial Distance [ft] | B2: rc = | C2: =INDEX(STCCL,MATCH(nDia,DIAMETER,0)) -> 0 | D2: (SureTrack Central Cable locations) | K2: Average Slope Factor | L2: Cs = | M2: 0.75
A3: Maximum Calculated Cable Length for Flat Bottom Bins [ft] | B3: Lcf = | C3: =IF(RCBLTYPE="None",0,IF(OR(BT="Unstiffened AGI Westeel Flat Bottom",BT="Stiffened AGI Westeel Flat Bottom"),((1.25+nT*44)/12-2)+(nDia/2-rcable)*TAN(RADIANS(30)),0)) -> 0 | D3: (Length of cable from roof sheet to bin floor) | K3: Exposure Factor | L3: Ce = | M3: 1
A4: Maximum Calculated Cable Length for Hopper Bottom and SSK Bins [ft] | B4: Lch = | C4: =IF(OR(RCBLTYPE="None",BT="Unstiffened AGI Westeel Flat Bottom",BT="Stiffened AGI Westeel Flat Bottom"),0,((1.25+nT*44)/12)+(nDia/2-rcable)*TAN(RADIANS(30))+(nDia/2-rcable)*TAN(RADIANS(45))) ->  | D4: (Length of cable from roof sheet to hopper cone, assumes angle of hopper is 45°) | K4: Thermal Factor | L4: Ct = | M4: 1.2
A5: Cable Length [ft] | B5: L = | C5: =IF(RCBLTYPE=" ",NA(),IF(RCBLTYPE="None",0,IF(OR(BT="Unstiffened AGI Westeel Flat Bottom",BT="Stiffened AGI Westeel Flat Bottom"),Lcf,IF(OR(BT="Unstiffened AGI Westeel Hopper",BT="Stiffened AGI Westeel Hopper",BT="Stiffened AGI Westeel SSK"),Lch)))) ->  | K5: Importance Factor | L5: I = | M5: 0.8
A6: Product Density [lb/ft3] | B6: p = | C6: =CONVERT(772*1000,"g","lbm")/(CONVERT(1,"m","ft"))^3 -> 48.19438556 | D6: (Assume product used is wheat = 772 kg/m3) | K6: Roof Snow Load (psf) | L6: RSL = | M6: =IF(GSL="","",Cs*0.7*Ce*Ct*I*GSL) -> 
A7: Coefficient of Friction | B7: u = | C7: 0.37
A8: Lateral to Vertical Pressure Ratio | B8: k = | C8: 0.5 | E8: Coefficients of OPI radial cable loads
A9: Sensor Spacing [ft] | B9: ss = | C9: 6 | D9: (OPI) | E9: OPI | F9: C1 | G9: C2
A10: Sensor Weight [lbs/sensor] | B10: Ps = | C10: 45 | D10: (OPI) | E10: MDR | F10: 0.02384027778 | G10: 0.7582
A11: Radial Temperature Cable Force [lbs] | B11: PRT = | C11: =COEFFC1*p*(nDia/2)^2/(mu^2*k)*(-1+EXP(-mu*k*L/(nDia/2)))+(COEFFC1*p*nDia/(mu*2)+COEFFC2)*L ->  | E11: CDR | F11: 0.03319166667 | G11: 1.4527
A12: Radial Moisture Cable Force [lbs] | B12: PRM = | C12: =MOISTC1*p*(nDia/2)^2/(mu^2*k)*(-1+EXP(-mu*k*L/(nDia/2)))+(MOISTC1*p*nDia/(mu*2)+MOISTC2)*L + Ps/ss*L ->  | E12: C, DUE TO L | F12: =IF(L>80,F11,MDRC1) ->  | G12: =IF(L>80,G11,MDRC2) -> 
A13: Chosen Radial Cable Force [lbs] | B13: =IF(RCBLTYPE="None","None",IF(RCBLTYPE="Temperature",B11,B12)) -> PRM = | C13: =IF(RCBLTYPE="AGI SureTrack Temp",PRT,IF(RCBLTYPE="AGI SureTrack Moist/Moist & Temp",PRM,0)) -> 0 | E13: MOIST. | F13: 0.01351319444 | G13: 0.056208
A15: Determining Cable Support System | D15: Indicator | E15: PN | F15: Cost | G15: Logic
A16: Rib Caps | C16: =IF(AND(nDia<60,nDia>11),1,0) -> 0 | D16: 1 if used | E16: Varies by Dia | F16: Varies by Dia | G16: 12' - 54' non-structural roofs, 16 tiers or less for flat bottom bins, 14 tiers or less for hopper bins
A17: Internal Bracket Hanging under Rafters, 48'-108' Diameter Roof | C17: =IF(OR(nDia=" ",nT=" "),NA(),IF(AND(BT="Stiffened AGI Westeel Flat Bottom",nDia>=48),2,0)) ->  | D17: 2 if used | E17: 212777 | G17: structural roof, stiffened bin
A18: Radial Cable Support Chosen: | C18: =IF(OR(RCBLTYPE="None",RCBLTYPE=" "),"",IF(OR(Main!E25=212601,Main!E26=212610,Main!E26=212599,Main!E26=212598),2,MAX(C16))) ->  | D18: =INDEX($E$16:$E$17,MATCH($C$18,CBLSPT,0)) ->  | E18: =IFERROR(INDEX($A$16:$A$17,MATCH($C$18,CBLSPT,0)),"") -> 
A20: Determining Remaining Peak Load | B20: RPL = | C20: =ROUNDDOWN(IF(AND(OR(PEAK_TYPE="Higher Rated",PEAK_TYPE="Unknown"),nDia=60),INDEX(Peak_Loads[HRSTRUCTURAL],MATCH(nDia,Peak_Loads[DIAMETER]),0)-CABLE_LOAD,IF(AND(PEAK_TYPE="Standard",nDia=60),INDEX(Peak_Loads[STDSTRUCTURAL],MATCH(nDia,Peak_Loads[DIAMETER]),0)-CABLE_LOAD,IF(AND(OR(PEAK_TYPE="Higher Rated",PEAK_TYPE="Unknown"),nDia>47,nDia<55,OR(Tables!S2=212598,Tables!S2=212599,Tables!S2=212610)),INDEX(Peak_Loads[HRSTRUCTURAL],MATCH(nDia,Peak_Loads[DIAMETER]),0)-CABLE_LOAD,IF(AND(PEAK_TYPE="Standard",nDia>47,nDia<55,OR(Tables!S2=212598,Tables!S2=212599,Tables!S2=212610)),INDEX(Peak_Loads[STDSTRUCTURAL],MATCH(nDia,Peak_Loads[DIAMETER]),0)-CABLE_LOAD,IF(AND(OR(PEAK_TYPE="Higher Rated",PEAK_TYPE="Unknown"),OR(nDia<22,AND(nDia>35,nDia<55))),INDEX(Peak_Loads[HR],MATCH(nDia,Peak_Loads[DIAMETER]),0)-CABLE_LOAD,IF(AND(PEAK_TYPE="Standard",OR(nDia<22,AND(nDia>35,nDia<55))),INDEX(Peak_Loads[STD],MATCH(nDia,Peak_Loads[DIAMETER]),0)-CABLE_LOAD,IF(AND(OR(PEAK_TYPE="Higher Rated",PEAK_TYPE="Unknown"),nDia>22,nDia<35),INDEX(Peak_Loads[HR],MATCH(nDia,Peak_Loads[DIAMETER]),0),INDEX(Peak_Loads[STD],MATCH(nDia,Peak_Loads[DIAMETER]),0)))))))),0) -> 
A22: Max Roof Cap. w/ Rad. Cables, RSL, & Std Peak Load Applied | B22: CBLSPT | C22: STD | D22: UP1 | E22: UP2 | F22: UP3 | G22: Formulas
A23: Rib Caps [psf] | B23: =$C$16 -> 0 | C23: =IF(PEAK_TYPE="Standard",INDEX(Leftover_RSL_at_SPL_RibCaps[STD],MATCH(nDia,Leftover_RSL_at_SPL_RibCaps[DIAMETER]),0),INDEX(Leftover_RSL_at_UPL_RibCaps[STD],MATCH(nDia,Leftover_RSL_at_UPL_RibCaps[DIAMETER]),0)) ->  | D23: =IF(PEAK_TYPE="Standard",INDEX(Leftover_RSL_at_SPL_RibCaps[UP1],MATCH(nDia,Leftover_RSL_at_SPL_RibCaps[DIAMETER]),0),INDEX(Leftover_RSL_at_UPL_RibCaps[UP1],MATCH(nDia,Leftover_RSL_at_UPL_RibCaps[DIAMETER]),0)) ->  | E23: =IF(PEAK_TYPE="Standard",INDEX(Leftover_RSL_at_SPL_RibCaps[UP2],MATCH(nDia,Leftover_RSL_at_SPL_RibCaps[DIAMETER]),0),INDEX(Leftover_RSL_at_UPL_RibCaps[UP2],MATCH(nDia,Leftover_RSL_at_UPL_RibCaps[DIAMETER]),0)) ->  | F23: =IF(PEAK_TYPE="Standard",INDEX(Leftover_RSL_at_SPL_RibCaps[UP3],MATCH(nDia,Leftover_RSL_at_SPL_RibCaps[DIAMETER]),0),INDEX(Leftover_RSL_at_UPL_RibCaps[UP3],MATCH(nDia,Leftover_RSL_at_UPL_RibCaps[DIAMETER]),0)) ->  | G23: = Rs - RSL
A24: Hanging Bracket [psf] | B24: =$C$17 ->  | C24: =IF(PEAK_TYPE="Standard", INDEX(Leftover_RSL_at_SPL_Hanging[STD],MATCH(nDia,Leftover_RSL_at_SPL_Hanging[DIAMETER]),0), INDEX(Leftover_RSL_at_UPL_Hanging[STD],MATCH(nDia,Leftover_RSL_at_UPL_Hanging[DIAMETER]),0)) ->  | D24: =IF(PEAK_TYPE="Standard", INDEX(Leftover_RSL_at_SPL_Hanging[UP1],MATCH(nDia,Leftover_RSL_at_SPL_Hanging[DIAMETER]),0), INDEX(Leftover_RSL_at_UPL_Hanging[UP1],MATCH(nDia,Leftover_RSL_at_UPL_Hanging[DIAMETER]),0)) ->  | E24: =IF(PEAK_TYPE="Standard", INDEX(Leftover_RSL_at_SPL_Hanging[UP2],MATCH(nDia,Leftover_RSL_at_SPL_Hanging[DIAMETER]),0), INDEX(Leftover_RSL_at_UPL_Hanging[UP2],MATCH(nDia,Leftover_RSL_at_UPL_Hanging[DIAMETER]),0)) ->  | F24: =IF(PEAK_TYPE="Standard", INDEX(Leftover_RSL_at_SPL_Hanging[UP3],MATCH(nDia,Leftover_RSL_at_SPL_Hanging[DIAMETER]),0), INDEX(Leftover_RSL_at_UPL_Hanging[UP3],MATCH(nDia,Leftover_RSL_at_UPL_Hanging[DIAMETER]),0)) ->  | G24: = Rs - RSL
C26: 10 | D26: 20 | E26: 30 | F26: 40
A27: Determining Roof Upgrade | B27: CBLSPT | C27: Standard Roof | D27: Upgrade 1 | E27: Upgrade 2 | F27: Upgrade 3
A28: Rib Caps | B28: =$C$16 -> 0 | C28: =IF(AND($B28>0,C23>0,C23<>"N/A"),C$26,9999) -> 
A29: Hanging Bracket | B29: =$C$17 -> 

Sheet Tables (hidden)
A1: DIAMETER | B1: AGI SURETRACK CABLE QTY CENTRE | C1: AGI SURETRACK CABLE QTY RAD 1 | D1: AGI SURETRACK CENTER CABLE RADIAL DISTANCE | F1: Cable Type | H1: TIER | J1: Peak Load | L1: Roof | M1: Standard Roof | N1: Upgrade 1 | O1: Upgrade 2 | P1: Upgrade 3 | R1: Roof Upgrade Required | S1: =HLOOKUP(MIN(Calculations!$C$28:$F$29),Calculations!$C$26:$F$27,2,FALSE) ->  | U1: Size | V1: Description | W1: Part Number | Y1: EasyDry Roof | Z1: Standard Roof | AA1: Upgrade 1 | AB1: Upgrade 2 | AC1: Upgrade 3
A2: =IF(AND(LT="Farm (Price List)",OR(BT="Unstiffened AGI Westeel Flat Bottom",BT="Unstiffened AGI Westeel Hopper",BT="Stiffened AGI Westeel Flat Bottom",BT="Stiffened AGI Westeel Hopper",BT="Stiffened AGI Westeel SSK")),15,"") ->  | B2: 1 | C2: N/A | D2: =((33/2)+(7.1*COS(RADIANS(30))))/12 -> 1.887398364 | F2: =IF(AND(LT="Farm (Price List)",OR(PEAK_TYPE="Standard",PEAK_TYPE="Higher Rated",PEAK_TYPE="Unknown"),AND(ISBLANK(Main!D16)=FALSE,ISBLANK(WS)=FALSE,ISBLANK(GSL)=FALSE)),"None","") ->  | H2: =IF(AND(LT="Farm (Price List)",BT="Unstiffened AGI Westeel Hopper",nDia=16),"",IF(AND(LT="Farm (Price List)",BT="Unstiffened AGI Westeel Hopper",nDia>0,nDia<30),3,"")) ->  | J2: =IF(AND(LT="Farm (Price List)",ISNUMBER(N22)),"Standard","") ->  | L2: 15 | M2: - | R2: Roof Upgrade Part Number | S2: =INDEX(Tables!L1:P16,MATCH(nDia,Tables!L1:L16,0),MATCH($S$1,Tables!L1:P1,0)) ->  | U2: 15 | V2: =U2&"' "&"Non-Structural Roof" -> 15' Non-Structural Roof | W2: 212015 | Y2: 24 | Z2: - | AA2: 212024U1-ED
A3: =IF(AND(LT="Farm (Price List)",BT="Unstiffened AGI Westeel Hopper"),16,"") ->  | B3: 1 | C3: N/A | D3: =((33/2)+(7.1*COS(RADIANS(30))))/12 -> 1.887398364 | F3: =IF(OR(BT="AGI Westeel EasyDry SGL Fan Inlet",BT="AGI Westeel EasyDry DBL Fan Inlet"),"",IF(AND(LT="Farm (Price List)",OR(PEAK_TYPE="Standard",PEAK_TYPE="Higher Rated",PEAK_TYPE="Unknown"),AND(ISBLANK(Main!D16)=FALSE,ISBLANK(WS)=FALSE,ISBLANK(GSL)=FALSE)),"AGI SureTrack Temp","")) ->  | H3: =IF(OR(AND(LT="Farm (Price List)",BT="Unstiffened AGI Westeel Hopper",nDia=16),AND(LT="Farm (Price List)",BT="Unstiffened AGI Westeel Flat Bottom",nDia=39)),"",IF(OR(AND(LT="Farm (Price List)",BT="Unstiffened AGI Westeel Flat Bottom",nDia>0,nDia<54),AND(LT="Farm (Price List)",OR(BT="Unstiffened AGI Westeel Hopper",BT="Stiffened AGI Westeel SSK"),nDia>0,nDia<30),AND(LT="Farm (Price List)",BT="Stiffened AGI Westeel Hopper",nDia>0,nDia<=33)),4,"")) ->  | J3: =IF(AND(LT="Farm (Price List)",ISNUMBER(N22)),"Higher Rated","") ->  | L3: 16 | M3: - | R3: Cable Support Required | S3: =Calculations!$E$18 ->  | U3: 16 | V3: 16' Non-Structural Roof | W3: 212016 | Y3: 27 | Z3: - | AA3: 212027U1
A4: =IF(AND(LT="Farm (Price List)",OR(BT="Unstiffened AGI Westeel Flat Bottom",BT="Unstiffened AGI Westeel Hopper",BT="Stiffened AGI Westeel Flat Bottom",BT="Stiffened AGI Westeel Hopper",BT="Stiffened AGI Westeel SSK")),18,"") ->  | B4: 1 | C4: N/A | D4: =((33/2)+(11.55*COS(RADIANS(30))))/12 -> 2.208549451 | F4: =IF(OR(BT="AGI Westeel EasyDry SGL Fan Inlet",BT="AGI Westeel EasyDry DBL Fan Inlet"),"",IF(AND(LT="Farm (Price List)",OR(PEAK_TYPE="Standard",PEAK_TYPE="Higher Rated",PEAK_TYPE="Unknown"),AND(ISBLANK(Main!D16)=FALSE,ISBLANK(WS)=FALSE,ISBLANK(GSL)=FALSE)),"AGI SureTrack Moist/Moist & Temp","")) ->  | H4: =IF(OR(AND(LT="Farm (Price List)",OR(BT="Unstiffened AGI Westeel Flat Bottom",BT="Stiffened AGI Westeel Flat Bottom"),nDia>0,nDia<60),AND(LT="Farm (Price List)",OR(BT="Unstiffened AGI Westeel Hopper",BT="Stiffened AGI Westeel SSK"),nDia>0,nDia<30),AND(LT="Farm (Price List)",BT="Stiffened AGI Westeel Hopper",nDia>0,nDia<=33)),5,"") ->  | J4: =IF(AND(LT="Farm (Price List)",ISNUMBER(N22)),"Unknown","") ->  | L4: 18 | M4: - | R4: Support Part Number | S4: =Calculations!$D$18 ->  | U4: 18 | V4: 18' Non-Structural Roof | W4: 212018 | Y4: 30 | Z4: - | AA4: 212030U1 | AB4: 212030U2-ED
A5: =IF(AND(LT="Farm (Price List)",OR(BT="Unstiffened AGI Westeel Flat Bottom",BT="Unstiffened AGI Westeel Hopper",BT="Stiffened AGI Westeel Flat Bottom",BT="Stiffened AGI Westeel Hopper",BT="Stiffened AGI Westeel SSK")),21,"") ->  | B5: 1 | C5: N/A | D5: =((33/2)+(15.75*COS(RADIANS(30))))/12 -> 2.511658342 | H5: =IF(OR(AND(LT="Farm (Price List)",OR(BT="Unstiffened AGI Westeel Flat Bottom",BT="Stiffened AGI Westeel Flat Bottom"),nDia>0,nDia<60),AND(LT="Farm (Price List)",OR(BT="Unstiffened AGI Westeel Hopper",BT="Stiffened AGI Westeel SSK"),nDia>0,nDia<30),AND(LT="Farm (Price List)",BT="Stiffened AGI Westeel Hopper",nDia>0,nDia<=33)),6,"") ->  | L5: 21 | M5: - | N5: 212021U1 | U5: 21 | V5: 21' Non-Structural Roof | W5: 212021 | Y5: 36 | Z5: - | AA5: 212036U1 | AB5: 212036U2-ED
A6: =IF(AND(LT="Farm (Price List)",OR(BT="Unstiffened AGI Westeel Flat Bottom",BT="Unstiffened AGI Westeel Hopper",BT="AGI Westeel EasyDry SGL Fan Inlet",BT="Stiffened AGI Westeel Flat Bottom",BT="Stiffened AGI Westeel Hopper",BT="Stiffened AGI Westeel SSK")),24,"") ->  | C6: 3 | D6: =((33/2)+(19.94*COS(RADIANS(30))))/12 -> 2.814045546 | H6: =IF(AND(LT="Farm (Price List)",BT="Unstiffened AGI Westeel Hopper",OR(nDia=15,nDia=16,nDia=18)),"",IF(OR(AND(LT="Farm (Price List)",OR(BT="Unstiffened AGI Westeel Flat Bottom",BT="Stiffened AGI Westeel Flat Bottom"),nDia>0,nDia<60),AND(LT="Farm (Price List)",OR(BT="Unstiffened AGI Westeel Hopper",BT="Stiffened AGI Westeel SSK"),nDia>0,nDia<30),AND(LT="Farm (Price List)",BT="Stiffened AGI Westeel Hopper",nDia>0,nDia<=33),AND(LT="Farm (Price List)",OR(BT="AGI Westeel EasyDry SGL Fan Inlet",BT="AGI Westeel EasyDry DBL Fan Inlet"),nDia>0,nDia<30)),7,"")) ->  | L6: 24 | M6: - | N6: 212024U1 | U6: 24 | V6: 24' Non-Structural Roof | W6: 212024
A7: =IF(AND(LT="Farm (Price List)",OR(BT="Unstiffened AGI Westeel Flat Bottom",BT="Unstiffened AGI Westeel Hopper",BT="AGI Westeel EasyDry SGL Fan Inlet",BT="AGI Westeel EasyDry DBL Fan Inlet",BT="Stiffened AGI Westeel Flat Bottom",BT="Stiffened AGI Westeel Hopper",BT="Stiffened AGI Westeel SSK")),27,"") ->  | C7: 3 | D7: =((33/2)+(24.14*COS(RADIANS(30))))/12 -> 3.117154437 | F7: Location Type | H7: =IF(OR(AND(LT="Farm (Price List)",BT="Unstiffened AGI Westeel Hopper",OR(nDia=15,nDia=16,nDia=18,nDia=24))),"",IF(OR(AND(LT="Farm (Price List)",BT="Unstiffened AGI Westeel Flat Bottom",nDia>18,nDia<60),AND(LT="Farm (Price List)",OR(BT="Unstiffened AGI Westeel Hopper",BT="Stiffened AGI Westeel SSK"),nDia>0,nDia<30),AND(LT="Farm (Price List)",BT="Stiffened AGI Westeel Hopper",nDia>0,nDia<=33),AND(LT="Farm (Price List)",BT="Stiffened AGI Westeel Flat Bottom",nDia>0,nDia<66),AND(LT="Farm (Price List)",OR(BT="AGI Westeel EasyDry SGL Fan Inlet",BT="AGI Westeel EasyDry DBL Fan Inlet"),nDia>0,nDia<39)),8,"")) ->  | L7: 27 | M7: - | N7: 212027U1 | U7: 27 | V7: 27' Non-Structural Roof | W7: 212027
A8: =IF(AND(LT="Farm (Price List)",OR(BT="Unstiffened AGI Westeel Flat Bottom",BT="AGI Westeel EasyDry SGL Fan Inlet",BT="AGI Westeel EasyDry DBL Fan Inlet",BT="Stiffened AGI Westeel Flat Bottom",BT="Stiffened AGI Westeel Hopper")),30,"") ->  | C8: 3 | D8: =((52/2)+(17.36*COS(RADIANS(30))))/12 -> 3.419516751 | F8: Farm (Price List) | H8: =IF(OR(AND(LT="Farm (Price List)",BT="Unstiffened AGI Westeel Flat Bottom",nDia>24,nDia<60),AND(LT="Farm (Price List)",BT="Stiffened AGI Westeel SSK",nDia>0,nDia<30),AND(LT="Farm (Price List)",BT="Stiffened AGI Westeel Hopper",nDia>0,nDia<=33),AND(LT="Farm (Price List)",BT="Stiffened AGI Westeel Flat Bottom",nDia>0,nDia<66),AND(LT="Farm (Price List)",OR(BT="AGI Westeel EasyDry SGL Fan Inlet",BT="AGI Westeel EasyDry DBL Fan Inlet"),nDia>0,nDia<39)),9,"") ->  | L8: 30 | M8: - | N8: 212030U1 | O8: 212030U2 | U8: 30 | V8: 30' Non-Structural Roof | W8: 212030
A9: =IF(AND(LT="Farm (Price List)",OR(BT="Unstiffened AGI Westeel Flat Bottom",BT="Stiffened AGI Westeel Flat Bottom",BT="Stiffened AGI Westeel Hopper")),33,"") ->  | C9: 3 | D9: =((52/2)+(21.55*COS(RADIANS(30))))/12 -> 3.721903954 | F9: Commercial | H9: =IF(OR(AND(LT="Farm (Price List)",BT="Stiffened AGI Westeel Flat Bottom",nDia>0,nDia<66),AND(LT="Farm (Price List)",BT="Stiffened AGI Westeel SSK",nDia>0,nDia<27),AND(LT="Farm (Price List)",BT="Stiffened AGI Westeel Hopper",nDia>0,nDia<=33),AND(LT="Farm (Price List)",OR(BT="AGI Westeel EasyDry SGL Fan Inlet",BT="AGI Westeel EasyDry DBL Fan Inlet"),nDia>0,nDia<39)),10,"") ->  | L9: 33 | M9: - | N9: 212033U1 | O9: 212033U2 | U9: 33 | V9: 33' Non-Structural Roof | W9: 212033
A10: =IF(AND(LT="Farm (Price List)",OR(BT="Unstiffened AGI Westeel Flat Bottom",BT="AGI Westeel EasyDry SGL Fan Inlet",BT="AGI Westeel EasyDry DBL Fan Inlet",BT="Stiffened AGI Westeel Flat Bottom")),36,"") ->  | B10: 1 | C10: 3 | D10: =((52/2)+(25.75*COS(RADIANS(30))))/12 -> 4.025012846 | H10: =IF(OR(AND(LT="Farm (Price List)",BT="Stiffened AGI Westeel Flat Bottom",nDia>0,nDia<66),AND(LT="Farm (Price List)",OR(BT="AGI Westeel EasyDry SGL Fan Inlet",BT="AGI Westeel EasyDry DBL Fan Inlet"),nDia>24,nDia<39)),11,"") ->  | L10: 36 | M10: - | N10: 212036U1 | O10: 212036U2 | U10: 36 | V10: 36' Non-Structural Roof | W10: 212036
A11: =IF(AND(LT="Farm (Price List)",OR(BT="Unstiffened AGI Westeel Flat Bottom",BT="Stiffened AGI Westeel Flat Bottom")),39,"") ->  | B11: 1 | C11: 3 | D11: =((52/2)+(30*COS(RADIANS(30))))/12 -> 4.331730176 | H11: =IF(OR(AND(LT="Farm (Price List)",BT="Stiffened AGI Westeel Flat Bottom",nDia>0,nDia<66),AND(LT="Farm (Price List)",BT="Stiffened AGI Westeel Hopper",nDia=27),AND(LT="Farm (Price List)",OR(BT="AGI Westeel EasyDry SGL Fan Inlet",BT="AGI Westeel EasyDry DBL Fan Inlet"),nDia>24,nDia<39)),12,"") ->  | L11: 39 | M11: - | N11: 212039U1 | O11: 212039U2 | U11: 39 | V11: 39' Non-Structural Roof | W11: 212039
A12: =IF(AND(LT="Farm (Price List)",OR(BT="Unstiffened AGI Westeel Flat Bottom",BT="Stiffened AGI Westeel Flat Bottom")),42,"") ->  | B12: 1 | C12: 4 | D12: =((52/2)+(34.1*COS(RADIANS(30))))/12 -> 4.627622189 | F12: Bin Type | H12: =IF(AND(LT="Farm (Price List)",BT="Stiffened AGI Westeel Flat Bottom",nDia>0,nDia<66),13,"") ->  | L12: 42 | M12: - | N12: 212042U1 | O12: 212042U2 | U12: 42 | V12: 42' Non-Structural Roof | W12: 212042
A13: =IF(AND(LT="Farm (Price List)",OR(BT="Unstiffened AGI Westeel Flat Bottom",BT="Stiffened AGI Westeel Flat Bottom")),45,"") ->  | B13: 1 | C13: 4 | D13: =((52/2)+(38.32*COS(RADIANS(30))))/12 -> 4.932174456 | F13: =IF(LT="Farm (Price List)","Unstiffened AGI Westeel Flat Bottom","") ->  | H13: =IF(AND(LT="Farm (Price List)",BT="Stiffened AGI Westeel Flat Bottom",nDia>0,nDia<66),14,"") ->  | L13: 45 | M13: - | N13: 212045U1 | O13: 212045U2 | U13: 45 | V13: 45' Non-Structural Roof | W13: 212045
A14: =IF(AND(LT="Farm (Price List)",OR(BT="Unstiffened AGI Westeel Flat Bottom",BT="Stiffened AGI Westeel Flat Bottom")),48,"") ->  | B14: 1 | C14: 5 | D14: =((52/2)+(42.51*COS(RADIANS(30))))/12 -> 5.23456166 | F14: =IF(LT="Farm (Price List)","Stiffened AGI Westeel Flat Bottom","") ->  | H14: =IF(AND(LT="Farm (Price List)",BT="Stiffened AGI Westeel Flat Bottom",nDia>21,nDia<66),15,"") ->  | L14: 48 | M14: - | N14: 212048U1 | O14: 212048U2 | P14: 212598 | U14: 48 | V14: 48' Non-Structural Roof | W14: 212048
A15: =IF(AND(LT="Farm (Price List)",OR(BT="Unstiffened AGI Westeel Flat Bottom",BT="Stiffened AGI Westeel Flat Bottom")),51,"") ->  | B15: 1 | C15: 6 | D15: =((60/2)+(42.09*COS(RADIANS(30))))/12 -> 5.537584104 | F15: =IF(LT="Farm (Price List)","AGI Westeel EasyDry SGL Fan Inlet","") ->  | H15: =IF(AND(LT="Farm (Price List)",BT="Stiffened AGI Westeel Flat Bottom",nDia>21,nDia<66),16,"") ->  | L15: 51 | M15: - | N15: 212051U1 | O15: 212599 | U15: 51 | V15: 51' Non-Structural Roof | W15: 212051
A16: =IF(AND(LT="Farm (Price List)",OR(BT="Unstiffened AGI Westeel Flat Bottom",BT="Stiffened AGI Westeel Flat Bottom")),54,"") ->  | B16: 1 | C16: 6 | D16: =((60/2)+(46.28*COS(RADIANS(30))))/12 -> 5.839971307 | F16: =IF(LT="Farm (Price List)","AGI Westeel EasyDry DBL Fan Inlet","") ->  | L16: 54 | M16: - | N16: 212054U1 | O16: 212610 | U16: 54 | V16: 54' Non-Structural Roof | W16: 212054
A17: =IF(AND(LT="Farm (Price List)", BT="Stiffened AGI Westeel Flat Bottom"),60,"") ->  | B17: 1 | C17: 7 | D17: =((52/2)+(17.36*COS(RADIANS(30))))/12 -> 3.419516751 | F17: =IF(LT="Farm (Price List)","Unstiffened AGI Westeel Hopper","") ->  | U17: 60 | V17: =U17&"' "&"Structural Roof" -> 60' Structural Roof | W17: 212601
F18: =IF(LT="Farm (Price List)","Stiffened AGI Westeel Hopper","") ->  | L18: Developer Drop Down Lists | V18: 21' Upgrade 1 | W18: 212021U1
F19: =IF(LT="Farm (Price List)","Stiffened AGI Westeel SSK","") ->  | L19: 3 | N19: =INDEX(Tables!$F$8:$F$10,Tables!L19) ->  | V19: 24' Upgrade 1 | W19: 212024U1
L20: 8 | N20: =INDEX(Tables!$F$13:$F$20,Tables!L20) ->  | V20: 24' EasyDry Upgrade 1 | W20: 212024U1-ED
L21: 17 | N21: =INDEX(Tables!$A$2:$A$18,Tables!L21) ->  | V21: 27' Upgrade 1 | W21: 212027U1
L22: 15 | N22: =INDEX(Tables!$H$2:$H$16,Tables!L22) ->  | V22: 30' Upgrade 1 | W22: 212030U1
L23: 4 | N23: =INDEX(Tables!$J$2:$J$5,Tables!L23) ->  | V23: 33' Upgrade 1 | W23: 212033U1
L24: 4 | N24: =INDEX(Tables!$F$2:$F$5,Tables!L24) ->  | V24: 36' Upgrade 1 | W24: 212036U1
V25: 39' Upgrade 1 | W25: 212039U1
A26: (Rs, psf) Max Roof Snow Load @ Standard Peak Load | G26: (U, psf) Ultimate FEA Roof Snow Load Capacities @ Standard Peak Load | N26: Peak Loads | V26: 42' Upgrade 1 | W26: 212042U1
A27: DIAMETER | B27: STD | C27: UP1 | D27: UP2 | E27: UP3 | G27: DIAMETER | H27: STD | I27: UP1 | J27: UP2 | K27: UP3 | N27: DIAMETER | O27: STD | P27: HR | Q27: STDSTRUCTURAL | R27: HRSTRUCTURAL | V27: 45' Upgrade 1 | W27: 212045U1
A28: 15 | B28: 45 | C28: N/A | D28: N/A | E28: N/A | G28: 15 | H28: 75.48 | I28: N/A | J28: N/A | K28: N/A | N28: 15 | O28: 4000 | P28: 8000 | Q28: N/A | R28: N/A | V28: 48' Upgrade 1 | W28: 212048U1
A29: 16 | B29: 45 | C29: N/A | D29: N/A | E29: N/A | G29: 16 | H29: 75.48 | I29: N/A | J29: N/A | K29: N/A | N29: 16 | O29: 4000 | P29: 8000 | Q29: N/A | R29: N/A | V29: 51' Upgrade 1 | W29: 212051U1
A30: 18 | B30: 45 | C30: N/A | D30: N/A | E30: N/A | G30: 18 | H30: 75.48 | I30: N/A | J30: N/A | K30: N/A | N30: 18 | O30: 4000 | P30: 8000 | Q30: N/A | R30: N/A | V30: 54' Upgrade 1 | W30: 212054U1
A31: 21 | B31: 30 | C31: 49 | D31: N/A | E31: N/A | G31: 21 | H31: 51.55 | I31: 81.67 | J31: N/A | K31: N/A | N31: 21 | O31: 4000 | P31: 8000 | Q31: N/A | R31: N/A | V31: 30' Upgrade 2 | W31: 212030U2
A32: 24 | B32: 21 | C32: 40 | D32: N/A | E32: N/A | G32: 24 | H32: 36.58 | I32: 67.84 | J32: N/A | K32: N/A | N32: 24 | O32: 4000 | P32: 8000 | Q32: N/A | R32: N/A | V32: 30' EasyDry Upgrade 2 | W32: 212030U2-ED
A33: 27 | B33: 24 | C33: 39 | D33: N/A | E33: N/A | G33: 27 | H33: 40.56 | I33: 65.17 | J33: N/A | K33: N/A | N33: 27 | O33: 5000 | P33: 10000 | Q33: N/A | R33: N/A | V33: 33' Upgrade 2 | W33: 212033U2
A34: 30 | B34: 20 | C34: 32 | D34: 40 | E34: N/A | G34: 30 | H34: 34.58 | I34: 53.53 | J34: 67.17 | K34: N/A | N34: 30 | O34: 5000 | P34: 10000 | Q34: N/A | R34: N/A | V34: 36' Upgrade 2 | W34: 212036U2
A35: 33 | B35: 23 | C35: 33 | D35: 44 | E35: N/A | G35: 33 | H35: 39.91 | I35: 56.53 | J35: 73.82 | K35: N/A | N35: 33 | O35: 5000 | P35: 10000 | Q35: N/A | R35: N/A | V35: 36' EasyDry Upgrade 2 | W35: 212036U2-ED
A36: 36 | B36: 24 | C36: 30 | D36: 38 | E36: N/A | G36: 36 | H36: 41.23 | I36: 51.55 | J36: 64.85 | K36: N/A | N36: 36 | O36: 5000 | P36: 10000 | Q36: N/A | R36: N/A | V36: 39' Upgrade 2 | W36: 212039U2
A37: 39 | B37: 22 | C37: 27 | D37: 36 | E37: N/A | G37: 39 | H37: 37.24 | I37: 45.22 | J37: 61.52 | K37: N/A | N37: 39 | O37: 5000 | P37: 10000 | Q37: N/A | R37: N/A | V37: 42' Upgrade 2 | W37: 212042U2
A38: 42 | B38: 19 | C38: 24 | D38: 34 | E38: N/A | G38: 42 | H38: 33.26 | I38: 41.57 | J38: 58.2 | K38: N/A | N38: 42 | O38: 5000 | P38: 10000 | Q38: N/A | R38: N/A | V38: 45' Upgrade 2 | W38: 212045U2
A39: 45 | B39: 16 | C39: 23 | D39: 32 | E39: N/A | G39: 45 | H39: 28.27 | I39: 39.91 | J39: 53.87 | K39: N/A | N39: 45 | O39: 5000 | P39: 10000 | Q39: N/A | R39: N/A | V39: 48' Upgrade 2 | W39: 212048U2
A40: 48 | B40: 21 | C40: 26 | D40: 33 | E40: 39 | G40: 48 | H40: 35.9 | I40: 44.23 | J40: 55.53 | K40: 73.16 | N40: 48 | O40: 5000 | P40: 10000 | Q40: 20000 | R40: 60000 | V40: 48' Structural Roof | W40: 212598
A41: 51 | B41: 20 | C41: 28 | D41: 39 | E41: N/A | G41: 51 | H41: 34.25 | I41: 48.22 | J41: 73.16 | K41: N/A | N41: 51 | O41: 8000 | P41: 12000 | Q41: 20000 | R41: 60000 | V41: 51' Structural Roof | W41: 212599
A42: 54 | B42: 17 | C42: 27 | D42: 39 | E42: N/A | G42: 54 | H42: 29.93 | I42: 46.26 | J42: 73.16 | K42: N/A | N42: 54 | O42: 8000 | P42: 12000 | Q42: 20000 | R42: 60000 | V42: 54' Structural Roof | W42: 212610
A43: 60 | B43: 39 | C43: N/A | D43: N/A | E43: N/A | G43: 60 | H43: 73.16 | I43: N/A | J43: N/A | K43: N/A | N43: 60 | O43: N/A | P43: N/A | Q43: 20000 | R43: 60000
A45: (Rs, psf) Max Roof Snow Load @ Upgraded Peak Load | G45: (U, psf) Ultimate FEA Roof Snow Load Capacities @ Upgraded Peak Load
A46: DIAMETER | B46: STD | C46: UP1 | D46: UP2 | E46: UP3 | G46: DIAMETER | H46: STD | I46: UP1 | J46: UP2 | K46: UP3
A47: 15 | B47: 29 | C47: N/A | D47: N/A | E47: N/A | G47: 15 | H47: 58.91 | I47: N/A | J47: N/A | K47: N/A | O47: Rs*Rlf*Sif <= U*Rfs | P47: - this can be rearranged to give the maximum roof snow load capacity of the roof: Rs = U*Rfs/(Rlf*Sif)
A48: 16 | B48: 29 | C48: N/A | D48: N/A | E48: N/A | G48: 16 | H48: 58.91 | I48: N/A | J48: N/A | K48: N/A | P48: Rs = | Q48: the maximum roof snow load capacity of the roof
A49: 18 | B49: 29 | C49: N/A | D49: N/A | E49: N/A | G49: 18 | H49: 58.91 | I49: N/A | J49: N/A | K49: N/A | P49: U = | Q49: the ultimate roof snow load capacity as found by our FEA models
A50: 21 | B50: 24 | C50: 40 | D50: N/A | E50: N/A | G50: 21 | H50: 49.55 | I50: 81.8 | J50: N/A | K50: N/A | O50: 0.9 | P50: = Rfs = | Q50: the roof steel resistance factor. We use 0.9 following CSA S136
A51: 24 | B51: 17 | C51: 27 | D51: N/A | E51: N/A | G51: 24 | H51: 34.92 | I51: 55.54 | J51: N/A | K51: N/A | O51: 1.5 | P51: = Rlf = | Q51: the roof snow load factor. We use 1.5 as per NBCC 2015 load combination 3
A52: 27 | B52: 19 | C52: 28 | D52: N/A | E52: N/A | G52: 27 | H52: 38.24 | I52: 56.53 | J52: N/A | K52: N/A | O52: 0.8 | P52: = Sif = | Q52: the snow load importance factor (Occupancy). We use 0.8 as per NBCC 4.1.6.2
A53: 30 | B53: 15 | C53: 24 | D53: 33 | E53: N/A | G53: 30 | H53: 31.26 | I53: 48.17 | J53: 67.84 | K53: N/A
A54: 33 | B54: 18 | C54: 24 | D54: 36 | E54: N/A | G54: 33 | H54: 37.91 | I54: 48.22 | J54: 72.78 | K54: N/A
A55: 36 | B55: 18 | C55: 23 | D55: 31 | E55: N/A | G55: 36 | H55: 36.9 | I55: 46.38 | J55: 63.19 | K55: N/A
A56: 39 | B56: 16 | C56: 21 | D56: 30 | E56: N/A | G56: 39 | H56: 33.51 | I56: 42.9 | J56: 60.52 | K56: N/A
A57: 42 | B57: 14 | C57: 19 | D57: 27 | E57: N/A | G57: 42 | H57: 29.93 | I57: 39.91 | J57: 55.29 | K57: N/A
A58: 45 | B58: 13 | C58: 18 | D58: 25 | E58: N/A | G58: 45 | H58: 26.27 | I58: 36.58 | J58: 50.54 | K58: N/A
A59: 48 | B59: 16 | C59: 21 | D59: 26 | E59: 38 | G59: 48 | H59: 33.26 | I59: 42.9 | J59: 52.54 | K59: 71.5
A60: 51 | B60: 14 | C60: 21 | D60: 38 | E60: N/A | G60: 51 | H60: 29.93 | I60: 43.32 | J60: 71.5 | K60: N/A
A61: 54 | B61: 13 | C61: 20 | D61: 38 | E61: N/A | G61: 54 | H61: 26.27 | I61: 40.9 | J61: 71.5 | K61: N/A
A62: 60 | B62: 38 | C62: N/A | D62: N/A | E62: N/A | G62: 60 | H62: 71.5 | I62: N/A | J62: N/A | K62: N/A
A64: Left Over Roof Snow Load @ Standard Peak Load With: RS = U*Rfs/(Rlf*Sif)-RSL
A66: Rib Caps | C66: Cable Load: | D66: =Calculations!$B$13 -> PRM = | E66: =Calculations!$C$13 -> 0
B67: DIAMETER | C67: STD | D67: UP1 | E67: UP2 | F67: UP3
B68: 15 | C68: =B28-RSL ->  | D68: N/A | E68: N/A | F68: N/A
B69: 16 | D69: N/A | E69: N/A | F69: =M70 -> 0
B70: 18 | D70: N/A | E70: N/A | F70: N/A
B71: 21 | D71: =C31-RSL ->  | E71: N/A | F71: N/A
B72: 24 | E72: N/A | F72: N/A
B73: 27 | E73: N/A | F73: N/A
B74: 30 | E74: =D34-RSL ->  | F74: N/A
B75: 33 | F75: N/A
B76: 36 | F76: N/A
B77: 39 | F77: N/A
B78: 42 | F78: N/A
B79: 45 | F79: N/A
B80: 48 | F80: N/A
B81: 51 | E81: N/A | F81: N/A
B82: 54 | E82: N/A | F82: N/A
B83: 60 | C83: N/A | D83: N/A | E83: N/A | F83: N/A
A85: Hanging Bracket Support System | C85: Cable Load: | D85: =Calculations!$B$13 -> PRM = | E85: =Calculations!$C$13 -> 0
B86: DIAMETER | C86: STD | D86: UP1 | E86: UP2 | F86: UP3
B87: 15 | C87: N/A | D87: N/A | E87: N/A | F87: N/A
B88: 16 | C88: N/A | D88: N/A | E88: N/A | F88: N/A
B89: 18 | C89: N/A | D89: N/A | E89: N/A | F89: N/A
B90: 21 | C90: N/A | D90: N/A | E90: N/A | F90: N/A
B91: 24 | C91: N/A | D91: N/A | E91: N/A | F91: N/A
B92: 27 | C92: N/A | D92: N/A | E92: N/A | F92: N/A
B93: 30 | C93: N/A | D93: N/A | E93: N/A | F93: N/A
B94: 33 | C94: N/A | D94: N/A | E94: N/A | F94: N/A
B95: 36 | C95: N/A | D95: N/A | E95: N/A | F95: N/A
B96: 39 | C96: N/A | D96: N/A | E96: N/A | F96: N/A
B97: 42 | C97: N/A | D97: N/A | E97: N/A | F97: N/A
B98: 45 | C98: N/A | D98: N/A | E98: N/A | F98: N/A
B99: 48 | C99: N/A | D99: N/A | E99: N/A | F99: =E40-RSL -> 
B100: 51 | C100: N/A | D100: N/A | E100: =D41-RSL ->  | F100: N/A
B101: 54 | C101: N/A | D101: N/A | E101: =D42-RSL ->  | F101: N/A
B102: 60 | C102: =B43-RSL ->  | D102: N/A | E102: N/A | F102: N/A
A104: Left Over Roof Snow Load @ Upgraded Peak Load With: RS = U*Rfs/(Rlf*Sif)-RSL
A106: Rib Caps | C106: Cable Load: | D106: =Calculations!$B$13 -> PRM = | E106: =Calculations!$C$13 -> 0
B107: DIAMETER | C107: STD | D107: UP1 | E107: UP2 | F107: UP3
B108: 15 | C108: =B47-RSL ->  | D108: N/A | E108: N/A | F108: N/A
B109: 16 | D109: N/A | E109: N/A | F109: N/A
B110: 18 | D110: N/A | E110: N/A | F110: N/A
B111: 21 | D111: =C50-RSL ->  | E111: N/A | F111: N/A
B112: 24 | E112: N/A | F112: N/A
B113: 27 | E113: N/A | F113: N/A
B114: 30 | E114: =D53-RSL ->  | F114: N/A
B115: 33 | F115: N/A
B116: 36 | F116: N/A
B117: 39 | F117: N/A
B118: 42 | F118: N/A
B119: 45 | F119: N/A
B120: 48 | F120: N/A
B121: 51 | E121: N/A | F121: N/A
B122: 54 | E122: N/A | F122: N/A
B123: 60 | C123: N/A | D123: N/A | E123: N/A | F123: N/A
A125: Hanging Bracket Support System | C125: Cable Load: | D125: =Calculations!$B$13 -> PRM = | E125: =Calculations!$C$13 -> 0
B126: DIAMETER | C126: STD | D126: UP1 | E126: UP2 | F126: UP3
B127: 15 | C127: N/A | D127: N/A | E127: N/A | F127: N/A
B128: 16 | C128: N/A | D128: N/A | E128: N/A | F128: N/A
B129: 18 | C129: N/A | D129: N/A | E129: N/A | F129: N/A
B130: 21 | C130: N/A | D130: N/A | E130: N/A | F130: N/A
B131: 24 | C131: N/A | D131: N/A | E131: N/A | F131: N/A
B132: 27 | C132: N/A | D132: N/A | E132: N/A | F132: N/A
B133: 30 | C133: N/A | D133: N/A | E133: N/A | F133: N/A
B134: 33 | C134: N/A | D134: N/A | E134: N/A | F134: N/A
B135: 36 | C135: N/A | D135: N/A | E135: N/A | F135: N/A
B136: 39 | C136: N/A | D136: N/A | E136: N/A | F136: N/A
B137: 42 | C137: N/A | D137: N/A | E137: N/A | F137: N/A
B138: 45 | C138: N/A | D138: N/A | E138: N/A | F138: N/A
B139: 48 | C139: N/A | D139: N/A | E139: N/A | F139: =E59-RSL -> 
B140: 51 | C140: N/A | D140: N/A | E140: =D60-RSL ->  | F140: N/A
B141: 54 | C141: N/A | D141: N/A | E141: =D61-RSL ->  | F141: N/A
B142: 60 | C142: =B62-RSL ->  | D142: N/A | E142: N/A | F142: N/A

Sheet Revision Notes (hidden)
A1: Version Number | B1: Details
A2: 1.1 | B2: - Updating version number to match Westeel Roof Tool - Canada upon release.
B3: - Changed code so print area was set better.
A4: 1.2 | B4: - Updating version number to match Westeel Roof Tool - Canada upon release.
B5: - Changed code so print area was set better.
A6: 1.3 | B6: - Changed main page to not show any results until all mandatory fields are filled in.
B7: - Updated 21' and 24' Upgrade 1 roof capacities.
B8: - Changed wording on Westeel hopper availability.
B9: - Updated logic for choosing the 42'-54' - 4-rib bracket system.
B10: - Updated equations for choosing hangar brackets and tri-pod systems to better reflect logic statements.
B11: - Added in Westeel EasyDry SGL Fan Inlet and DBL Fan Inlet bin type options.
A12: 2.0 | B12: - Changed all Guardian naming to SureTrack.
B13: - Non-structural roofs that will receive monitoring cables will now be supplied with Rib Caps. Rib Caps will take all of the cable load, therefore the cable load will no longer affect Roof Upgrades by reducing the capacity of the roof.
B14: - Main tab will now show how much Peak Load is available if a Central Monitoring Cable is installed in the bin.
B15: - Removed Unstiffened SSK offering, and updated Stiffened SSK offering.
B16: - The calculation to determine the cable length in Flat Bottom Bins has changed from a clearance of 3' to 2' to match SureTrack's worst case scenario.
B17: - Important notes updated to reflect change to SureTrack offering.
A18: 3.0 | B18: - Updated Remaing Peak Load to correctly read Unknown Peak Load Type rating as the Higher Rated Peak Load Type rating.
B19: - Changed all Westeel and SureTrack naming to AGI Westeel and AGI SureTrack.
B20: - Added Quick Notes and Instructions & Training tabs.
B21: - Changed Main tab logo from AGI Westeel to AGI.
A22: 4 | B22: - Updated Stiffened AGI Westeel Hopper to include 2710 & 2712, 3004-10, and 3304-10 models (ECR A8635)

Sheet Other (hidden)
B2: Non-Structural Roof Capacity Chart:
B3: Maximum Roof Snow Load @ Standard Peak Load
B4: Bin Series | C4: Standard Peak Load | D4: Standard Roof | F4: Upgrade 1 | H4: Upgrade 2 | J4: Upgrade 3
C7: lbs (kN) | D7: psf | E7: kPa | F7: psf | G7: kPa | H7: psf | I7: kPa | J7: psf | K7: kPa | N7: Bin Series | O7: R | P7: H | Q7: L | R7: 3 rad cbl | S7: +4 rad cbl | X7: Bin Series
B8: 15 | C8: 4000 (17.8) | D8: 49 | E8: 2.35 | F8: n/a | H8: n/a | J8: n/a | N8: 24 | O8: =N8/2/COS(RADIANS(30)) -> 13.85640646 | P8: =N8/2*TAN(RADIANS(30)) -> 6.92820323 | Q8: =O8/2 -> 6.92820323 | R8: =N8/2/2 -> 6 | T8: =Q8*COS(RADIANS(30)) -> 6 | U8: =T8*12 -> 72 | X8: 24
B9: 18 | D9: 49 | E9: 2.35 | N9: 27 | O9: 15.58845727 | P9: =N9/2*TAN(RADIANS(30)) -> 7.794228634 | Q9: =O9/2 -> 7.794228634 | R9: =N9/2/2 -> 6.75 | T9: 6.75 | U9: =T9*12 -> 81 | X9: 27
B10: 21 | D10: 33 | E10: 1.58 | F10: 50 | G10: 2.39 | N10: 30 | O10: 17.32050808 | P10: 8.660254038 | Q10: 8.660254038 | R10: 7.5 | T10: 7.5 | U10: 90 | X10: 30
B11: 24 | D11: 23 | E11: 1.1 | F11: 36 | G11: 1.72 | N11: 33 | O11: 19.05255888 | P11: 9.526279442 | Q11: 9.526279442 | R11: 8.25 | T11: 8.25 | U11: 99 | X11: 33
B12: 27 | C12: 5000 (22.2) | D12: 26 | E12: 1.24 | F12: 42 | G12: 2.01 | N12: 36 | O12: 20.78460969 | P12: 10.39230485 | Q12: =O12/3 -> 6.92820323 | S12: =N12/2/3 -> 6 | T12: =Q12*COS(RADIANS(30)) -> 6 | U12: 72 | V12: =N12*12/2-U12 -> 144 | W12: =V12/12 -> 12 | X12: 36
B13: 30 | D13: 22 | E13: 1.05 | F13: 34 | G13: 1.63 | H13: 43 | I13: 2.06 | N13: 39 | O13: 22.5166605 | P13: 11.25833025 | Q13: =O13/3 -> 7.505553499 | S13: =N13/2/3 -> 6.5 | T13: =Q13*COS(RADIANS(30)) -> 6.5 | U13: 78 | V13: =N13*12/2-U13 -> 156 | W13: =V13/12 -> 13 | X13: 39
B14: 33 | D14: 16 | E14: 0.77 | F14: 26 | G14: 1.24 | H14: 36 | I14: 1.72 | J14: 47 | K14: 2.25 | N14: 42 | O14: 24.24871131 | P14: 12.12435565 | Q14: 8.082903769 | S14: 7 | T14: 7 | U14: 84 | V14: 168 | W14: 14 | X14: 42
B15: 36 | D15: 26 | E15: 1.24 | F15: 33 | G15: 1.58 | H15: 42 | I15: 2.01 | J15: n/a | N15: 45 | O15: 25.98076211 | P15: 12.99038106 | Q15: 8.660254038 | S15: 7.5 | T15: 7.5 | U15: 90 | V15: 180 | W15: 15 | X15: 45
B16: 39 | D16: 24 | E16: 1.15 | F16: 29 | G16: 1.39 | H16: 39 | I16: 1.87 | N16: 48 | O16: 27.71281292 | P16: 13.85640646 | Q16: 9.237604307 | S16: 8 | T16: 8 | U16: 96 | V16: 192 | W16: 16 | X16: 48
B17: 42 | D17: 21 | E17: 1.01 | F17: 27 | G17: 1.29 | H17: 37 | I17: 1.77 | N17: 51 | O17: 29.44486373 | P17: 14.72243186 | Q17: 9.814954576 | S17: 8.5 | T17: 8.5 | U17: 102 | V17: 204 | W17: 17 | X17: 51
B18: 45 | D18: 18 | E18: 0.86 | F18: 26 | G18: 1.24 | H18: 35 | I18: 1.68 | N18: 54 | O18: 31.17691454 | P18: 15.58845727 | Q18: 10.39230485 | S18: 9 | T18: 9 | U18: 108 | V18: 216 | W18: 18 | X18: 54
B19: 48 | D19: 23 | E19: 1.1 | F19: 28 | G19: 1.34 | H19: 36 | I19: 1.72
B20: 51 | C20: 8000 (35.6) | D20: 22 | E20: 1.05 | F20: 31 | G20: 1.48 | H20: n/a | N20: Guardian
B21: 54 | D21: 19 | E21: 0.91 | F21: 30 | G21: 1.44 | N21: Diameter | O21: centre | P21: radius 1 | Q21: radius 2 | R21: radius 3
N22: 15 | O22: 1
N23: 18 | O23: 1
N24: 21 | O24: 1
N25: 24 | P25: 3 @ 7.00 ft
N26: 27 | P26: 3 @ 7.00 ft
N27: 30 | P27: 3 @ 7.50 ft
N28: 33 | P28: 3 @ 8.00 ft
N29: 36 | O29: 1 | P29: 3 @ 9.00 ft
N30: 39 | O30: 1 | P30: 3 @ 11.50 ft
N31: 42 | O31: 1 | P31: 4 @ 14.00 ft
N32: 45 | O32: 1 | P32: 4 @ 15.00 ft
N33: 48 | O33: 1 | P33: 5 @ 16.00 ft
N34: 51 | O34: 1 | P34: 6 @ 16.00 ft
N35: 54 | O35: 1 | P35: 6 @ 18.67 ft
N36: 60 | O36: 1 | P36: 7 @ 20.00 ft
N37: 66 | P37: 3 @ 10.00 ft | Q37: 8 @ 25.00 ft
N38: 72 | P38: 4 @ 10.00 ft | Q38: 9 @ 27.00 ft
N39: 75 | P39: 4 @ 10.00 ft | Q39: 10 @ 28.00 ft
N40: 78 | P40: 4 @ 10.00 ft | Q40: 10 @ 29.50 ft
N41: 84 | O41: 1 | P41: 5 @ 16.00 ft | Q41: 10 @ 32.00 ft
N42: 90 | O42: 1 | P42: 6 @ 18.00 ft | Q42: 12 @ 36.00 ft
N43: 96 | P43: 3 @ 10.00 ft | Q43: 8 @ 23.83 ft | R43: 12 @ 40.17 ft
N44: 102 | P44: 3 @ 10.00 ft | Q44: 8 @ 25.83 ft | R44: 17 @ 43.17 ft
N45: 105 | P45: 3 @ 9.00 ft | Q45: 9 @ 26.50 ft | R45: 16 @ 44.00 ft
N46: 108 | P46: 3 @ 9.00 ft | Q46: 9 @ 27.00 ft | R46: 18 @ 45.00 ft
